bitfinex/quotes_BTCUSD_20250619
["timestamp","ask_amount","ask_price","bid_price","bid_amount"]
[1750371373077,0.05815283,104670.0,104660.0,0.51937703]
[1750371373281,0.01850809,104670.0,104660.0,0.51937703]
[1750371373704,0.03761452,104670.0,104660.0,0.51937703]
[1750371374372,0.05672127,104670.0,104660.0,0.51937703]
[1750371374860,0.04776751,104670.0,104660.0,0.51937703]
[1750371375061,0.04876751,104670.0,104660.0,0.35993703]
[1750371375267,0.04876751,104670.0,104650.0,0.19227323]
[1750371375268,0.21975856,104660.0,104650.0,0.19227323]
[1750371375602,0.21020427,104660.0,104650.0,0.41532427]
[1750371375807,0.21020427,104660.0,104650.0,0.42487956]
[1750371376007,0.21975847,104660.0,104650.0,0.43443458]
[1750371376920,0.22931321,104660.0,104650.0,0.43443458]
[1750371377551,0.0296635,104660.0,104650.0,0.43443458]
[1750371377762,0.22075847,104660.0,104650.0,0.43443458]
[1750371377973,0.0296635,104660.0,104650.0,0.43443458]
[1750371378177,0.22075847,104660.0,104650.0,0.43443458]
[1750371378600,0.22075847,104660.0,104650.0,0.42487956]
[1750371379063,0.22075847,104660.0,104650.0,0.43443476]
[1750371379281,0.22075847,104660.0,104650.0,0.44398987]
[1750371380022,0.22075847,104660.0,104650.0,0.44394987]
[1750371381574,0.0296635,104660.0,104650.0,0.44394923]
[1750371382527,0.23031321,104660.0,104650.0,0.44394923]
[1750371383465,0.03921824,104660.0,104650.0,0.44394923]
[1750371383667,0.0296635,104660.0,104650.0,0.44394923]
[1750371384696,0.22075847,104660.0,104650.0,0.44394923]
[1750371385329,0.23031321,104660.0,104650.0,0.44394923]
[1750371386675,0.03921824,104660.0,104650.0,0.44394923]
[1750371386884,0.0296635,104660.0,104650.0,0.44394923]
[1750371387503,0.02010885,104660.0,104650.0,0.44394923]
[1750371387892,0.02966277,104660.0,104650.0,0.44394923]
[1750371388128,0.03921733,104660.0,104650.0,0.44394923]
[1750371388849,0.02966277,104660.0,104650.0,0.44394923]
[1750371390676,0.03921733,104660.0,104650.0,0.44394923]
[1750371390917,0.02966277,104660.0,104650.0,0.44394923]
[1750371391182,0.01055401,104660.0,104650.0,0.44394923]
[1750371391934,0.02010821,104660.0,104650.0,0.44394923]
[1750371392182,0.01055401,104660.0,104650.0,0.44394923]
[1750371392433,0.02010821,104660.0,104650.0,0.44394923]
[1750371393101,0.02966268,104660.0,104650.0,0.44394923]
[1750371393290,0.02010821,104660.0,104650.0,0.44394923]
[1750371393737,0.02966259,104660.0,104650.0,0.44394923]
[1750371394058,0.02010821,104660.0,104650.0,0.44394923]
[1750371394527,0.02966259,104660.0,104650.0,0.44394923]
[1750371394709,0.02010821,104660.0,104650.0,0.44394923]
[1750371394949,0.01055401,104660.0,104650.0,0.44394923]
[1750371395175,0.02010821,104660.0,104650.0,0.44394923]
[1750371395990,0.02966259,104660.0,104650.0,0.44394923]
[1750371396864,0.02010821,104660.0,104650.0,0.44394923]
[1750371397090,0.0296625,104660.0,104650.0,0.44394923]
[1750371397532,0.01055401,104660.0,104650.0,0.44394923]
[1750371397750,0.02966249,104660.0,104650.0,0.44394923]
[1750371398191,0.02010811,104660.0,104650.0,0.44394923]
[1750371398405,0.0286624,104660.0,104650.0,0.44494923]
[1750371398613,0.01910811,104660.0,104650.0,0.44494923]
[1750371398834,0.01910811,104660.0,104650.0,0.44594923]
[1750371400755,0.44904551,104670.0,104660.0,0.26665838]
[1750371401016,0.06693085,104670.0,104660.0,0.27738248]
[1750371401221,0.07648432,104670.0,104660.0,0.27738248]
[1750371401438,0.07648426,104670.0,104660.0,0.27738248]
[1750371401736,0.06693079,104670.0,104660.0,0.27738248]
[1750371401760,0.05737742,104670.0,104660.0,0.27738248]
[1750371401965,0.0679307,104670.0,104660.0,0.27738248]
[1750371402594,0.06792906,104670.0,104660.0,0.27738248]
[1750371402952,0.04882259,104670.0,104660.0,0.37266141]
[1750371403153,0.039861,104670.0,104660.0,0.37266141]
[1750371410022,0.04941419,104670.0,104660.0,0.37266141]
[1750371410244,0.05896738,104670.0,104660.0,0.37266141]
[1750371410457,0.06852085,104670.0,104660.0,0.37266141]
[1750371410672,0.06852075,104670.0,104660.0,0.37266141]
[1750371410882,0.05896738,104670.0,104660.0,0.37266141]
[1750371411308,0.0494141,104670.0,104660.0,0.37266141]
[1750371411695,0.05896738,104670.0,104660.0,0.37266141]
[1750371411958,0.039861,104670.0,104660.0,0.38720226]
[1750371413933,0.038861,104670.0,104660.0,0.38720226]
[1750371414153,0.038861,104670.0,104660.0,0.38820226]
[1750371414398,0.00035,104680.0,104670.0,0.26680711]
[1750371414611,0.00043986,104680.0,104670.0,0.52000604]
[1750371415592,0.00143986,104680.0,104670.0,0.52000604]
[1750371415843,0.04055941,104680.0,104670.0,0.52000604]
[1750371418629,0.04055941,104680.0,104670.0,0.53454689]
[1750371418839,0.00143986,104680.0,104670.0,0.86554631]
[1750371419466,5e-05,104690.0,104680.0,0.21971612]
[1750371419690,5e-05,104690.0,104680.0,0.65226447]
[1750371419901,5e-05,104690.0,104680.0,0.36286505]
[1750371421209,5e-05,104690.0,104680.0,0.36586505]
[1750371421621,5e-05,104690.0,104680.0,0.65726447]
[1750371422283,5e-05,104690.0,104680.0,0.67180532]
[1750371423872,5e-05,104690.0,104680.0,0.67563132]
[1750371425898,5e-05,104690.0,104680.0,0.3862319]
[1750371426119,5e-05,104690.0,104680.0,0.67563132]
[1750371428413,5e-05,104690.0,104680.0,0.3862319]
[1750371429057,5e-05,104690.0,104680.0,0.4462319]
[1750371430305,5e-05,104690.0,104680.0,0.73563132]
[1750371431887,5e-05,104690.0,104680.0,0.4462319]
[1750371432115,5e-05,104690.0,104680.0,0.73563132]
[1750371432788,5e-05,104690.0,104680.0,1.03193132]
[1750371433234,5e-05,104690.0,104680.0,0.7425319]
[1750371434348,5e-05,104690.0,104680.0,0.9417319]
[1750371434789,5e-05,104690.0,104680.0,0.6454319]
[1750371436632,0.00960118,104690.0,104680.0,0.42669505]
[1750371436856,0.02870401,104690.0,104680.0,0.53771505]
[1750371437085,0.02994392,104690.0,104680.0,0.53771505]
[1750371437563,0.02994383,104690.0,104680.0,0.53771505]
[1750371438015,0.01084128,104690.0,104680.0,0.53771505]
[1750371440167,0.01084118,104690.0,104680.0,0.53771505]
[1750371440380,5e-05,104690.0,104680.0,0.53771505]
[1750371441042,5e-05,104690.0,104680.0,0.56181505]
[1750371442175,5e-05,104690.0,104680.0,0.53771505]
[1750371442377,5e-05,104690.0,104680.0,0.56211505]
[1750371442642,5e-05,104690.0,104680.0,0.58560505]
[1750371446260,5e-05,104690.0,104680.0,0.58441505]
[1750371447295,5e-05,104690.0,104680.0,0.56211505]
[1750371447547,5e-05,104690.0,104680.0,0.53771505]
[1750371448941,5e-05,104690.0,104680.0,0.52550505]
[1750371451558,5e-05,104690.0,104680.0,0.47771505]
[1750371453296,5e-05,104690.0,104680.0,0.50221505]
[1750371453960,5e-05,104690.0,104680.0,0.52633505]
[1750371454192,0.02456,104690.0,104680.0,0.31999505]
[1750371454412,0.05531118,104690.0,104680.0,0.47763505]
[1750371454825,0.04576,104690.0,104680.0,0.47763505]
[1750371455038,0.05531128,104690.0,104680.0,0.47759505]
[1750371455688,0.06486274,104690.0,104680.0,0.47759505]
[1750371456012,0.06486265,104690.0,104680.0,0.47759505]
[1750371456501,0.28455842,104690.0,104680.0,0.37276384]
[1750371456719,0.28455842,104690.0,104680.0,0.005]
[1750371456720,0.45590413,104690.0,104680.0,0.005]
[1750371456921,0.45590413,104690.0,104680.0,0.1626]
[1750371457065,0.45590413,104690.0,104680.0,0.005]
[1750371457066,0.40952999,104690.0,104680.0,0.005]
[1750371457276,5.25952999,104690.0,104680.0,0.005]
[1750371457477,5.25952999,104690.0,104680.0,0.002]
[1750371457873,5.25952999,104690.0,104680.0,0.19405846]
[1750371458105,5.25952999,104690.0,104680.0,0.21216421]
[1750371458486,5.25952999,104690.0,104680.0,0.21016421]
[1750371458715,5.25952999,104690.0,104680.0,0.20061138]
[1750371458913,5.25952999,104690.0,104680.0,0.20161138]
[1750371459166,5.25050798,104690.0,104680.0,0.01055292]
[1750371459365,5.25050363,104690.0,104680.0,0.00955292]
[1750371459996,5.25110363,104690.0,104680.0,0.00955292]
[1750371460199,5.25110363,104690.0,104680.0,0.20061138]
[1750371460418,5.25110363,104690.0,104680.0,0.21016421]
[1750371460831,5.27061621,104690.0,104680.0,0.21016421]
[1750371461679,5.27061621,104690.0,104680.0,0.00955292]
[1750371462325,0.01910511,104680.0,104670.0,0.39943674]
[1750371462527,0.21910511,104680.0,104670.0,0.49471567]
[1750371462744,0.41971667,104680.0,104670.0,0.49471585]
[1750371463638,0.42926959,104680.0,104670.0,0.49671585]
[1750371463856,0.42926959,104680.0,104670.0,0.33911585]
[1750371464067,0.43882214,104680.0,104670.0,0.34866904]
[1750371464517,0.24776368,104680.0,104670.0,0.36986904]
[1750371464943,0.23821076,104680.0,104670.0,0.36986904]
[1750371465803,0.02865793,104680.0,104670.0,0.36986904]
[1750371467517,0.22926922,104680.0,104670.0,0.36986904]
[1750371467772,0.23882214,104680.0,104670.0,0.36986904]
[1750371468236,0.03821076,104680.0,104670.0,0.36986904]
[1750371470503,0.22926922,104680.0,104670.0,0.36986904]
[1750371473229,0.23882214,104680.0,104670.0,0.36986904]
[1750371473371,0.22926959,104680.0,104670.0,0.36031585]
[1750371473760,0.03821113,104680.0,104670.0,0.36031585]
[1750371474191,0.03821113,104680.0,104670.0,0.36148585]
[1750371474571,0.02865821,104680.0,104670.0,0.36148585]
[1750371474773,0.22926959,104680.0,104670.0,0.37103904]
[1750371475007,0.01910538,104680.0,104670.0,0.37103904]
[1750371476416,0.22001621,104690.0,104680.0,0.26321639]
[1750371476417,0.24754937,104690.0,104680.0,0.26321639]
[1750371476636,0.44814159,104690.0,104680.0,0.42190639]
[1750371477628,0.228446,104690.0,104680.0,0.5267376]
[1750371478012,0.19108069,104700.0,104690.0,0.25551395]
[1750371478013,0.21018242,104700.0,104690.0,0.25551395]
[1750371478192,0.21912155,104700.0,104690.0,0.25551395]
[1750371478621,0.41912155,104700.0,104690.0,0.25551395]
[1750371480384,0.41912155,104700.0,104690.0,0.27461714]
[1750371480928,0.41912155,104700.0,104690.0,0.26506559]
[1750371481162,0.41018242,104700.0,104690.0,0.26506559]
[1750371481367,0.4191248,104700.0,104690.0,0.26506559]
[1750371481996,0.4191248,104700.0,104690.0,0.25551395]
[1750371482200,0.4191248,104700.0,104690.0,0.24596222]
[1750371482402,0.40002307,104700.0,104690.0,0.0442]
[1750371482827,0.20059212,104690.0,104680.0,0.41144402]
[1750371483033,0.01910364,104690.0,104680.0,0.43171885]
[1750371483451,0.21014385,104690.0,104680.0,0.43171885]
[1750371484160,0.23872988,104690.0,104680.0,0.43171885]
[1750371484429,0.24828152,104690.0,104680.0,0.42216657]
[1750371485150,0.24828152,104690.0,104680.0,0.43171903]
[1750371485359,0.24828152,104690.0,104680.0,0.4412714]
[1750371487377,0.25783298,104690.0,104680.0,0.4412714]
[1750371487579,0.05724086,104690.0,104680.0,0.44127076]
[1750371487787,0.05724004,104690.0,104680.0,0.44127076]
[1750371489218,0.06679177,104690.0,104680.0,0.44127076]
[1750371489441,0.07634368,104690.0,104680.0,0.44127076]
[1750371490894,0.25783271,104690.0,104680.0,0.40189138]
[1750371491064,0.24828143,104690.0,104680.0,0.41261393]
[1750371491917,0.24828143,104690.0,104680.0,0.42216639]
[1750371493492,0.24828143,104690.0,104680.0,0.43171903]
[1750371494256,0.24828143,104690.0,104680.0,0.4412714]
[1750371494467,0.24828143,104690.0,104680.0,0.43171903]
[1750371494932,0.04768931,104690.0,104680.0,0.44127131]
[1750371495162,0.01910283,104690.0,104680.0,0.44127131]
[1750371495416,0.19108069,104700.0,104690.0,0.26776559]
[1750371495417,0.22354628,104700.0,104690.0,0.26776559]
[1750371495669,0.20958195,104700.0,104690.0,0.26776559]
[1750371496570,0.20958195,104700.0,104690.0,0.25821395]
[1750371497234,0.4061974,104700.0,104690.0,0.25821395]
[1750371497448,0.4061974,104700.0,104690.0,0.25821413]
[1750371497612,0.2061974,104700.0,104690.0,0.25821413]
[1750371497820,0.2061974,104700.0,104690.0,0.26776595]
[1750371498433,0.2061974,104700.0,104690.0,0.27731768]
[1750371500116,0.20619879,104700.0,104690.0,0.27731768]
[1750371500316,0.20000031,104700.0,104690.0,0.24866222]
[1750371500563,0.20000031,104700.0,104690.0,0.24749222]
[1750371500808,0.20895165,104700.0,104690.0,0.37259607]
[1750371501044,0.2191489,104710.0,104700.0,0.26494414]
[1750371501263,0.22869863,104710.0,104700.0,0.51758307]
[1750371501685,0.2191489,104710.0,104700.0,0.51758307]
[1750371501911,0.00959936,104710.0,104700.0,0.51758307]
[1750371502126,0.01854977,104710.0,104700.0,0.51758307]
[1750371502549,0.02809931,104710.0,104700.0,0.51758307]
[1750371502982,0.01854977,104710.0,104700.0,0.51758307]
[1750371503165,0.00900041,104710.0,104700.0,0.51758307]
[1750371503377,5e-05,104710.0,104700.0,0.51758307]
[1750371503874,0.00899575,104710.0,104700.0,0.51758307]
[1750371504085,5e-05,104710.0,104700.0,0.51758307]
[1750371507412,5e-05,104710.0,104700.0,0.51858307]
[1750371508276,5e-05,104710.0,104700.0,0.51958307]
[1750371509992,0.00959945,104710.0,104700.0,0.51958307]
[1750371510203,5e-05,104710.0,104700.0,0.51958307]
[1750371511904,0.00959945,104710.0,104700.0,0.51958307]
[1750371512550,5e-05,104710.0,104700.0,0.51958307]
[1750371512766,0.00959945,104710.0,104700.0,0.51958307]
[1750371513833,0.00959936,104710.0,104700.0,0.51958307]
[1750371514457,0.0191489,104710.0,104700.0,0.51958307]
[1750371514901,0.23880244,104710.0,104700.0,0.51950317]
[1750371515144,0.04779872,104710.0,104700.0,0.52905362]
[1750371515561,0.23880326,104710.0,104700.0,0.52905362]
[1750371516003,0.21015399,104710.0,104700.0,0.002]
[1750371516471,0.21068399,104710.0,104700.0,0.002]
[1750371516905,0.21068399,104710.0,104700.0,0.001]
[1750371517120,0.21012351,104700.0,104690.0,0.42337495]
[1750371517329,0.01910137,104700.0,104690.0,0.51985388]
[1750371517545,0.02865228,104700.0,104690.0,0.51985388]
[1750371518636,0.03820273,104700.0,104690.0,0.52085388]
[1750371518860,0.019101,104700.0,104690.0,0.52085388]
[1750371519102,0.02865164,104700.0,104690.0,0.52085388]
[1750371519545,0.02865164,104700.0,104690.0,0.52185388]
[1750371519960,0.20060363,104710.0,104700.0,0.25372351]
[1750371520183,0.21970344,104710.0,104700.0,0.25372351]
[1750371520833,0.21970344,104710.0,104700.0,0.24417287]
[1750371521054,0.21015381,104710.0,104700.0,0.24417287]
[1750371521915,0.21015381,104710.0,104700.0,0.25372369]
[1750371522541,0.21015381,104710.0,104700.0,0.26327442]
[1750371523007,0.21015381,104710.0,104700.0,0.25372369]
[1750371524936,0.21909401,104710.0,104700.0,0.25372369]
[1750371525366,0.21015381,104710.0,104700.0,0.25372369]
[1750371525781,0.21909483,104710.0,104700.0,0.25372369]
[1750371526367,0.21015381,104710.0,104700.0,0.25372369]
[1750371526972,0.21909658,104710.0,104700.0,0.25372369]
[1750371528144,0.20954667,104710.0,104700.0,0.24417287]
[1750371528367,0.41012378,104700.0,104690.0,0.25634385]
[1750371528593,0.41012378,104700.0,104690.0,0.42313549]
[1750371528817,0.41012378,104700.0,104690.0,0.35783222]
[1750371529040,0.41012378,104700.0,104690.0,0.36738413]
[1750371529326,0.41012378,104700.0,104690.0,0.38908413]
[1750371529769,0.41012378,104700.0,104690.0,0.0227]
[1750371529987,0.41004838,104700.0,104690.0,0.002]
[1750371530891,0.20059212,104690.0,104680.0,0.43310822]
[1750371531108,0.20059212,104690.0,104680.0,0.52838715]
[1750371531343,0.24935826,104690.0,104680.0,0.0454]
[1750371531574,0.01910656,104670.0,104660.0,0.23051212]
[1750371531808,0.01910656,104670.0,104660.0,0.48364091]
[1750371532034,0.02866012,104670.0,104660.0,0.32588091]
[1750371532260,0.03821377,104670.0,104660.0,0.48364091]
[1750371532475,0.03821377,104670.0,104660.0,0.38588091]
[1750371532692,0.03821377,104670.0,104660.0,0.54364091]
[1750371533581,0.04776751,104670.0,104660.0,0.54864091]
[1750371533797,0.04776751,104670.0,104660.0,0.54364091]
[1750371533983,0.04776751,104670.0,104660.0,0.29360198]
[1750371534222,0.22929149,104670.0,104660.0,0.42445939]
[1750371534466,0.22929149,104670.0,104660.0,0.45711386]
[1750371534686,0.22929149,104670.0,104660.0,0.47921386]
[1750371535139,0.22929149,104670.0,104660.0,0.48876824]
[1750371535366,0.22929149,104670.0,104660.0,0.42576824]
[1750371535621,0.22929149,104670.0,104660.0,0.42776824]
[1750371536073,0.21973793,104670.0,104660.0,0.40665939]
[1750371536294,0.21973793,104670.0,104660.0,0.40765957]
[1750371536518,0.21973793,104670.0,104660.0,0.40465957]
[1750371536742,0.21973793,104670.0,104660.0,0.41521422]
[1750371536980,0.21973793,104670.0,104660.0,0.39311422]
[1750371537190,0.21018428,104670.0,104660.0,0.20273957]
[1750371537396,0.21018428,104670.0,104660.0,0.36037957]
[1750371537609,0.21018428,104670.0,104660.0,0.20273957]
[1750371537817,0.20063054,104670.0,104660.0,0.1692446]
[1750371538175,0.20063054,104670.0,104660.0,0.15968986]
[1750371538389,5.25063054,104670.0,104660.0,0.00208986]
[1750371538823,5.29603054,104670.0,104660.0,0.00208986]
[1750371538994,5.29656054,104670.0,104660.0,0.00108986]
[1750371539537,5.29656054,104670.0,104660.0,8.986e-05]
[1750371544318,5.08600391,104670.0,104660.0,8.986e-05]
[1750371544539,5.28663445,104670.0,104660.0,8.986e-05]
[1750371544971,5.24123445,104670.0,104660.0,8.986e-05]
[1750371545208,5.24070445,104670.0,104660.0,8.986e-05]
[1750371545672,5.43926445,104670.0,104660.0,0.23498483]
[1750371545902,5.43926445,104670.0,104660.0,0.04512986]
[1750371547080,5.43926445,104670.0,104660.0,0.02178986]
[1750371551177,0.2197372,104670.0,104660.0,0.2642886]
[1750371551388,0.4197372,104670.0,104660.0,0.2738428]
[1750371551601,0.2197372,104670.0,104660.0,0.2738428]
[1750371552423,0.23821423,104670.0,104660.0,0.2738428]
[1750371552635,0.22929094,104670.0,104660.0,0.2738428]
[1750371552846,0.22929094,104670.0,104660.0,0.2642886]
[1750371553355,0.22866049,104670.0,104660.0,0.36912163]
[1750371553991,0.23821423,104670.0,104660.0,0.36912163]
[1750371555759,0.22929094,104670.0,104660.0,0.36912163]
[1750371555970,0.23884477,104670.0,104660.0,0.36912163]
[1750371556193,0.43884477,104670.0,104660.0,0.36912163]
[1750371556405,0.23884477,104670.0,104660.0,0.36912163]
[1750371557523,0.22865994,104670.0,104660.0,0.36912163]
[1750371557744,0.22865994,104670.0,104660.0,0.36788163]
[1750371557958,0.41018373,104670.0,104660.0,0.23562483]
[1750371558170,0.21018373,104670.0,104660.0,0.24517948]
[1750371558852,0.20063036,104670.0,104660.0,0.24517948]
[1750371560829,0.20063036,104670.0,104660.0,0.04452986]
[1750371561049,0.20002496,104670.0,104660.0,0.02178986]
[1750371561321,0.20002496,104670.0,104660.0,8.986e-05]
[1750371561768,0.2229356,104670.0,104660.0,8.986e-05]
[1750371563092,5.2630096,104670.0,104660.0,8.986e-05]
[1750371565342,5.2635396,104670.0,104660.0,8.986e-05]
[1750371565567,5.2630096,104670.0,104660.0,8.986e-05]
[1750371565779,5.3064396,104670.0,104660.0,8.986e-05]
[1750371565991,5.32434973,104670.0,104660.0,8.986e-05]
[1750371566695,5.30314973,104670.0,104660.0,8.986e-05]
[1750371566821,5.28144973,104670.0,104660.0,8.986e-05]
[1750371567289,5.32684973,104670.0,104660.0,8.986e-05]
[1750371568855,5.28146446,104670.0,104660.0,8.986e-05]
[1750371569284,5.43825446,104670.0,104660.0,0.02198986]
[1750371569459,5.42033905,104670.0,104660.0,0.04408986]
[1750371569872,5.42036041,104670.0,104660.0,0.04408986]
[1750371571575,5.42036064,104670.0,104660.0,0.04408986]
[1750371573667,5.42036064,104670.0,104660.0,0.02198986]
[1750371573865,5.42036064,104670.0,104660.0,8.986e-05]
[1750371574080,5.42036064,104670.0,104660.0,0.04328986]
[1750371576357,5.42036064,104670.0,104660.0,0.24393957]
[1750371576807,5.42036064,104670.0,104660.0,0.04328986]
[1750371577018,5.41140271,104670.0,104660.0,0.04328986]
[1750371577233,5.41140271,104670.0,104660.0,0.24393948]
[1750371577433,5.41136271,104670.0,104660.0,0.24509948]
[1750371577869,5.45252271,104670.0,104660.0,0.24509948]
[1750371579276,5.45252271,104670.0,104660.0,0.23554483]
[1750371579918,5.42959071,104670.0,104660.0,0.23554483]
[1750371580123,5.45252542,104670.0,104660.0,0.23554483]
[1750371580926,5.45252542,104670.0,104660.0,0.04444986]
[1750371581252,5.45252542,104670.0,104660.0,0.24509948]
[1750371581461,5.29524542,104670.0,104660.0,0.25465404]
[1750371581698,5.24070445,104670.0,104660.0,0.26420833]
[1750371581904,0.35791045,104670.0,104660.0,0.26420833]
[1750371582114,0.37701775,104670.0,104660.0,0.27376253]
[1750371582320,0.20955319,104670.0,104660.0,0.28331663]
[1750371582526,0.22865984,104670.0,104660.0,0.37859556]
[1750371582729,0.02865984,104670.0,104660.0,0.37859556]
[1750371582953,0.22865984,104670.0,104660.0,0.37859556]
[1750371583155,0.02865984,104670.0,104660.0,0.37859556]
[1750371583371,0.22865984,104670.0,104660.0,0.37859556]
[1750371583590,0.02865984,104670.0,104660.0,0.37859556]
[1750371583804,0.22865984,104670.0,104660.0,0.37859556]
[1750371584081,0.22929075,104670.0,104660.0,0.35948726]
[1750371584467,0.21973747,104670.0,104660.0,0.35948726]
[1750371585466,0.21973747,104670.0,104660.0,0.36904146]
[1750371586882,0.21973747,104670.0,104660.0,0.34993297]
[1750371587118,0.2101841,104670.0,104660.0,0.35948744]
[1750371587353,0.2101841,104670.0,104660.0,0.36904182]
[1750371588962,0.2101841,104670.0,104660.0,0.37859611]
[1750371590245,0.2101841,104670.0,104660.0,0.37859566]
[1750371590988,0.2101841,104670.0,104660.0,0.36904146]
[1750371592548,0.40063027,104670.0,104660.0,0.36904146]
[1750371592755,0.20063027,104670.0,104660.0,0.36904146]
[1750371594788,0.20063027,104670.0,104660.0,0.37859566]
[1750371596041,0.20063027,104670.0,104660.0,0.35948717]
[1750371597133,0.20063027,104670.0,104660.0,0.36904146]
[1750371598191,0.22866049,104670.0,104660.0,0.37859556]
[1750371598637,0.42929094,104670.0,104660.0,0.37859556]
[1750371598849,0.23884477,104670.0,104660.0,0.37859556]
[1750371599059,0.22865976,104670.0,104660.0,0.37859556]
[1750371599293,0.20955301,104670.0,104660.0,0.37859556]
[1750371599509,0.21910629,104670.0,104660.0,0.37859556]
[1750371600667,0.2798026,104690.0,104680.0,0.24647129]
[1750371600889,0.31169303,104690.0,104680.0,0.26557667]
[1750371601101,0.31169303,104690.0,104680.0,0.25602403]
[1750371601514,0.31169303,104690.0,104680.0,0.26557667]
[1750371601701,0.31169303,104690.0,104680.0,0.25602403]
[1750371603736,0.31169303,104690.0,104680.0,0.24647129]
[1750371604296,0.30214139,104690.0,104680.0,0.24647129]
[1750371605474,0.30213499,104690.0,104680.0,0.24647129]
[1750371605727,0.30213499,104690.0,104680.0,0.25602403]
[1750371606369,0.30213499,104690.0,104680.0,0.26557667]
[1750371606576,0.30213499,104690.0,104680.0,0.25602403]
[1750371606782,0.30213499,104690.0,104680.0,0.24647129]
[1750371607945,0.30213499,104690.0,104680.0,0.25602403]
[1750371608796,0.30213499,104690.0,104680.0,0.26557667]
[1750371609019,0.30213499,104690.0,104680.0,0.25602403]
[1750371609465,0.30213499,104690.0,104680.0,0.26557667]
[1750371610105,0.30213499,104690.0,104680.0,0.27512922]
[1750371611214,0.30213216,104690.0,104680.0,0.27512922]
[1750371611902,0.0318812,104690.0,104680.0,0.37996043]
[1750371612204,5.24962528,104690.0,104680.0,0.53720043]
[1750371612402,0.2,104690.0,104680.0,0.51948441]
[1750371612649,5.040074,104690.0,104680.0,0.51948441]
[1750371613090,0.24775373,104700.0,104690.0,0.26694522]
[1750371613312,0.27960095,104700.0,104690.0,0.26694522]
[1750371613746,0.44772033,104700.0,104690.0,0.25739376]
[1750371613975,0.23816988,104700.0,104690.0,0.25739376]
[1750371614206,0.23816988,104700.0,104690.0,0.26694531]
[1750371614445,0.04714792,104700.0,104690.0,0.27649677]
[1750371614687,0.24714792,104700.0,104690.0,0.28604814]
[1750371614900,0.23759692,104700.0,104690.0,0.28604814]
[1750371615382,0.24714792,104700.0,104690.0,0.28604814]
[1750371615606,0.43816988,104700.0,104690.0,0.26694531]
[1750371615856,0.24714792,104700.0,104690.0,0.28604814]
[1750371616313,0.43816988,104700.0,104690.0,0.26694531]
[1750371616545,0.23816988,104700.0,104690.0,0.26694531]
[1750371616757,0.21906851,104700.0,104690.0,0.21454021]
[1750371616991,0.21906851,104700.0,104690.0,0.22409212]
[1750371617210,0.21906851,104700.0,104690.0,0.25829385]
[1750371617879,0.21906851,104700.0,104690.0,0.26784549]
[1750371618409,0.21906851,104700.0,104690.0,0.25829385]
[1750371619773,0.20893925,104700.0,104690.0,0.2678454]
[1750371619986,0.36671212,104700.0,104690.0,0.2678454]
[1750371620233,0.37626305,104700.0,104690.0,0.27739677]
[1750371620447,0.41742173,104700.0,104690.0,0.27739677]
[1750371620987,0.42697273,104700.0,104690.0,0.27739677]
[1750371621616,0.62754578,104700.0,104690.0,0.27739677]
[1750371621804,0.42754578,104700.0,104690.0,0.27739677]
[1750371622467,0.43709633,104700.0,104690.0,0.27739677]
[1750371622707,0.43709633,104700.0,104690.0,0.2678454]
[1750371622928,0.43709633,104700.0,104690.0,0.27739686]
[1750371623355,0.42754578,104700.0,104690.0,0.27739686]
[1750371623803,0.43648447,104700.0,104690.0,0.2678454]
[1750371624265,0.42693365,104700.0,104690.0,0.25829385]
[1750371624463,0.41738274,104700.0,104690.0,0.24874212]
[1750371624957,0.41738274,104700.0,104690.0,0.24749212]
[1750371625462,0.39889305,104700.0,104690.0,0.24749212]
[1750371625705,0.4078335,104700.0,104690.0,0.24874212]
[1750371627530,0.29081303,104700.0,104690.0,0.24874212]
[1750371627729,0.49081303,104700.0,104690.0,0.24874212]
[1750371630306,0.49081303,104700.0,104690.0,0.25829394]
[1750371630547,0.20059203,104690.0,104680.0,0.14117893]
[1750371630758,0.01910629,104670.0,104660.0,0.21154313]
[1750371630978,0.22929085,104670.0,104660.0,0.09536879]
[1750371631261,0.2101841,104670.0,104660.0,8.986e-05]
[1750371631471,0.00955502,104650.0,104640.0,0.16397896]
[1750371631688,0.03822116,104650.0,104640.0,0.42597428]
[1750371632338,0.07242965,104650.0,104640.0,0.42597428]
[1750371632768,0.07242965,104650.0,104640.0,0.42997428]
[1750371633411,0.26354352,104650.0,104640.0,0.27281428]
[1750371633627,0.25398823,104650.0,104640.0,0.44301835]
[1750371633839,0.24443285,104650.0,104640.0,0.2620089]
[1750371634061,0.23487738,104650.0,104640.0,0.27275547]
[1750371634286,0.42532181,104650.0,104640.0,0.30425699]
[1750371634502,0.41576615,104650.0,104640.0,0.00829]
[1750371634724,0.41576615,104650.0,104640.0,0.0071]
[1750371634983,0.41576615,104650.0,104640.0,0.0031]
[1750371635445,0.41576615,104650.0,104640.0,0.0081]
[1750371635678,0.41576615,104650.0,104640.0,0.0051]
[1750371635922,0.41576615,104650.0,104640.0,0.0071]
[1750371636427,0.46196615,104650.0,104640.0,0.0071]
[1750371636685,0.43866615,104650.0,104640.0,0.0071]
[1750371639218,0.46216615,104650.0,104640.0,0.0071]
[1750371644191,0.20068788,104640.0,104630.0,0.0001]
[1750371645508,0.20068788,104640.0,104630.0,0.0011]
[1750371645757,0.24678788,104640.0,104630.0,0.0011]
[1750371645976,0.24678788,104640.0,104630.0,0.0051]
[1750371646189,0.20068788,104640.0,104630.0,0.0051]
[1750371648353,0.24268517,104640.0,104630.0,0.0051]
[1750371648571,5.32764188,104640.0,104630.0,0.0051]
[1750371648791,5.24078106,104630.0,104620.0,0.0001]
[1750371649673,5.24078106,104630.0,104620.0,0.20201643]
[1750371650105,5.24078106,104630.0,104620.0,0.20248684]
[1750371650349,5.24078106,104630.0,104620.0,0.00176041]
[1750371650766,5.24078106,104630.0,104620.0,0.19292844]
[1750371650980,5.24178106,104630.0,104620.0,0.20248684]
[1750371651200,5.24378106,104630.0,104620.0,0.20248684]
[1750371653472,5.25333827,104630.0,104620.0,0.20248684]
[1750371654810,5.25333827,104630.0,104620.0,0.22528684]
[1750371655248,5.24378106,104630.0,104620.0,0.00057041]
[1750371656132,5.24378106,104630.0,104620.0,0.19173844]
[1750371656320,5.24378106,104630.0,104620.0,0.00057041]
[1750371656559,5.24378106,104630.0,104620.0,0.19173844]
[1750371656833,5.24378106,104630.0,104620.0,0.20129684]
[1750371657043,5.24378106,104630.0,104620.0,0.00057041]
[1750371658521,5.44528106,104630.0,104620.0,0.00057041]
[1750371658741,5.54108999,104630.0,104620.0,0.00057041]
[1750371659799,5.56396157,104630.0,104620.0,0.00057041]
[1750371667537,5.56343157,104630.0,104620.0,0.00057041]
[1750371667957,5.51913157,104630.0,104620.0,0.00057041]
[1750371669018,5.26665264,104630.0,104620.0,0.19173844]
[1750371669201,5.43254376,104630.0,104620.0,0.04796041]
[1750371669699,5.43254376,104630.0,104620.0,0.02476041]
[1750371669911,5.43254376,104630.0,104620.0,0.02357041]
[1750371671186,5.45543618,104630.0,104620.0,0.02357041]
[1750371675038,0.20072624,104620.0,104600.0,0.22525395]
[1750371675250,0.02867629,104610.0,104600.0,0.24446332]
[1750371675461,0.23823542,104610.0,104600.0,0.25402354]